bitfinex/quotes_BTCUSD_20250403
["timestamp","ask_amount","ask_price","bid_price","bid_amount"]
[1743640735666,0.00033111,83359.0,83358.0,0.28398914]
[1743640736993,0.00033111,83359.0,83358.0,0.28023786]
[1743640737751,0.00033111,83359.0,83358.0,0.26823553]
[1743640740141,0.00033111,83359.0,83358.0,0.65573553]
[1743640740830,0.00033111,83359.0,83358.0,0.26823553]
[1743640741530,0.00033111,83359.0,83358.0,0.26811378]
[1743640741732,0.00033111,83359.0,83358.0,0.28011611]
[1743640742761,0.00033111,83359.0,83358.0,0.26811378]
[1743640742879,0.00033111,83359.0,83358.0,0.43476938]
[1743640743084,0.00033111,83359.0,83358.0,0.79976938]
[1743640743085,1.1e-07,83359.0,83358.0,0.79976938]
[1743640743283,1.1e-07,83359.0,83358.0,0.93312938]
[1743640743939,1.1e-07,83359.0,83358.0,0.97013171]
[1743640744362,0.004,83369.0,83362.0,0.011995]
[1743640744363,6.1e-07,83363.0,83362.0,0.011995]
[1743640744561,6.1e-07,83363.0,83362.0,0.711066]
[1743640744703,6.1e-07,83363.0,83362.0,0.7086676]
[1743640744908,6.1e-07,83363.0,83362.0,0.72816844]
[1743640745892,0.004,83369.0,83368.0,0.591895]
[1743640746072,0.004,83369.0,83368.0,0.7086506]
[1743640747257,0.004,83369.0,83368.0,0.251895]
[1743640747862,0.004,83369.0,83368.0,0.27139584]
[1743640748060,0.004,83369.0,83368.0,0.42899584]
[1743640748307,0.004,83369.0,83368.0,0.27514712]
[1743640748452,0.004,83369.0,83368.0,0.43270712]
[1743640749075,0.004,83369.0,83368.0,0.42070479]
[1743640749353,0.004,83369.0,83368.0,0.42050479]
[1743640749630,0.004,83369.0,83368.0,0.02324479]
[1743640749848,0.004,83369.0,83368.0,0.01124979]
[1743640750144,0.004,83369.0,83368.0,0.00749851]
[1743640750409,0.13516005,83369.0,83368.0,0.00749851]
[1743640750544,0.18176005,83369.0,83368.0,0.00749851]
[1743640751300,0.591906,83364.0,83363.0,0.00375128]
[1743640751500,0.251912,83362.0,83361.0,0.00600212]
[1743640751621,0.36856763,83362.0,83361.0,0.00600212]
[1743640752208,0.591922,83359.0,83342.0,0.01200233]
[1743640752329,0.7086776,83359.0,83342.0,0.01200233]
[1743640752987,0.637649,83350.0,83342.0,0.01200233]
[1743640753204,0.637649,83350.0,83339.0,0.0003368]
[1743640753205,0.7544046,83350.0,83349.0,0.10530706]
[1743640753399,0.7087046,83350.0,83349.0,0.10530706]
[1743640753790,0.7087046,83350.0,83349.0,8.271e-05]
[1743640754601,0.251949,83350.0,83349.0,8.271e-05]
[1743640754804,0.3687046,83350.0,83349.0,8.271e-05]
[1743640756180,0.251949,83350.0,83349.0,8.271e-05]
[1743640757408,0.3687046,83350.0,83349.0,8.271e-05]
[1743640757838,0.7980652,83350.0,83349.0,8.271e-05]
[1743640758042,0.7573046,83350.0,83349.0,8.271e-05]
[1743640758655,0.76355804,83350.0,83349.0,8.271e-05]
[1743640759708,0.7573046,83350.0,83349.0,8.271e-05]
[1743640760078,0.7635567,83350.0,83349.0,0.00041951]
[1743640760417,0.7087046,83350.0,83349.0,0.00041951]
[1743640761239,0.3687046,83350.0,83349.0,0.00041951]
[1743640761440,0.251941,83353.0,83349.0,0.00041951]
[1743640761441,0.239946,83352.0,83349.0,0.00041951]
[1743640761616,0.251949,83350.0,83349.0,0.00041951]
[1743640762014,0.251924,83358.0,83351.0,0.239949]
[1743640762212,0.011996,83358.0,83351.0,0.251946]
[1743640762402,0.239937,83355.0,83350.0,0.011997]
[1743640763708,0.011996,83356.0,83350.0,0.011997]
[1743640764382,0.25434645,83355.0,83350.0,0.251948]
[1743640764643,0.251936,83355.0,83350.0,0.251948]
[1743640764796,0.251939,83354.0,83349.0,0.00041951]
[1743640765202,0.251939,83354.0,83349.0,0.01241651]
[1743640766036,0.011996,83356.0,83350.0,0.251949]
[1743640766235,0.251935,83355.0,83350.0,0.251949]
[1743640766639,0.239936,83356.0,83352.0,0.251941]
[1743640766839,0.0001684,83359.0,83354.0,0.239938]
[1743640767093,0.0001684,83359.0,83358.0,0.011996]
[1743640767295,0.0001684,83359.0,83358.0,0.30422317]
[1743640767475,0.0001684,83359.0,83358.0,0.4185796]
[1743640767672,0.0001684,83359.0,83358.0,0.43054111]
[1743640768339,0.0001684,83359.0,83358.0,0.31068449]
[1743640768979,0.0001684,83359.0,83358.0,0.32234368]
[1743640769798,0.0001684,83359.0,83358.0,0.31068449]
[1743640769973,0.0001684,83359.0,83358.0,0.46584449]
[1743640770830,0.0001684,83359.0,83358.0,0.15516]
[1743640770831,0.0121644,83359.0,83358.0,0.15516]
[1743640772419,0.011997,83354.0,83349.0,0.00041951]
[1743640773452,0.239938,83355.0,83349.0,0.00041951]
[1743640773655,0.011996,83357.0,83352.0,0.239945]
[1743640773856,0.251941,83353.0,83349.0,0.00947273]
[1743640774082,0.011996,83355.0,83349.0,0.00041951]
[1743640774220,0.011996,83357.0,83351.0,0.251943]
[1743640774817,0.239934,83356.0,83351.0,0.011997]
[1743640775016,0.239934,83356.0,83351.0,0.251943]
[1743640775417,0.011996,83357.0,83352.0,0.25194]
[1743640775727,0.0001684,83359.0,83355.0,0.25193]
[1743640775937,0.0001684,83359.0,83357.0,0.239931]
[1743640776755,0.0001684,83359.0,83355.0,0.25193]
[1743640777002,0.2520924,83359.0,83354.0,0.011997]
[1743640777225,0.011996,83356.0,83351.0,0.239947]
[1743640777375,0.011996,83356.0,83349.0,0.00041951]
[1743640777376,0.25194,83354.0,83349.0,0.00041951]
[1743640777577,0.239946,83353.0,83349.0,0.24037151]
[1743640777785,0.251943,83353.0,83349.0,0.00041951]
[1743640779117,0.251949,83350.0,83349.0,0.00041951]
[1743640781715,0.3687046,83350.0,83349.0,0.00041951]
[1743640781956,0.7087046,83350.0,83349.0,0.00041951]
[1743640782367,1.1233046,83350.0,83349.0,0.00041951]
[1743640782848,1.13518321,83350.0,83349.0,0.00041951]
[1743640784179,1.34632722,83350.0,83349.0,5.1e-07]
[1743640784298,1.35132722,83350.0,83349.0,5.1e-07]
[1743640785362,1.37632722,83350.0,83349.0,5.1e-07]
[1743640785536,1.25458321,83350.0,83349.0,5.1e-07]
[1743640787193,1.38190321,83350.0,83349.0,5.1e-07]
[1743640787347,1.22958321,83350.0,83349.0,5.1e-07]
[1743640789847,1.23458321,83350.0,83349.0,5.1e-07]
[1743640790567,1.22958321,83350.0,83349.0,5.1e-07]
[1743640792483,1.13518321,83350.0,83349.0,5.1e-07]
[1743640793071,1.30492722,83350.0,83349.0,5.1e-07]
[1743640793681,0.591979,83340.0,83339.0,3.1e-07]
[1743640793884,0.252033,83322.0,83304.0,0.05729837]
[1743640794125,0.3687886,83322.0,83307.0,0.240075]
[1743640794350,0.3687886,83322.0,83306.0,0.012003]
[1743640794960,0.3687886,83322.0,83307.0,0.252076]
[1743640795344,0.36884362,83322.0,83307.0,0.252076]
[1743640795783,0.36884362,83322.0,83309.0,0.252072]
[1743640795950,0.36884362,83322.0,83315.0,0.252054]
[1743640796162,0.36884362,83322.0,83315.0,0.012002]
[1743640796475,5.502e-05,83322.0,83321.0,0.2523728]
[1743640797058,5.502e-05,83322.0,83321.0,0.3017728]
[1743640799219,5.502e-05,83322.0,83321.0,0.0497368]
[1743640799649,5.502e-05,83322.0,83321.0,0.0617378]
[1743640801022,5.502e-05,83322.0,83321.0,0.11163817]
[1743640801222,5.502e-05,83322.0,83321.0,0.1092378]
[1743640801742,5.502e-05,83322.0,83321.0,0.2604378]
[1743640802166,5.502e-05,83322.0,83321.0,0.2484368]
[1743640802570,5.502e-05,83322.0,83321.0,0.1515368]
[1743640803189,0.13122207,83322.0,83321.0,0.0003368]
[1743640803753,0.12881162,83322.0,83321.0,0.0003368]
[1743640804471,0.13122207,83322.0,83321.0,0.0003368]
[1743640804873,0.88582207,83322.0,83321.0,8e-07]
[1743640805100,0.92871162,83322.0,83321.0,8e-07]
[1743640805303,0.98181162,83322.0,83321.0,8e-07]
[1743640805642,0.592088,83304.0,83303.0,3.5e-07]
[1743640805788,0.592088,83304.0,83297.0,0.02925333]
[1743640805789,0.592106,83298.0,83297.0,0.02925333]
[1743640806015,0.592106,83298.0,83297.0,3.3e-07]
[1743640806016,1.1738616,83298.0,83297.0,3.3e-07]
[1743640806176,0.012006,83285.0,83281.0,1.3e-07]
[1743640806399,0.7089096,83282.0,83281.0,1.3e-07]
[1743640806572,1.1235096,83282.0,83281.0,1.3e-07]
[1743640806775,1.24941648,83282.0,83281.0,1.3e-07]
[1743640807017,1.13267247,83282.0,83281.0,1.3e-07]
[1743640807482,1.13267247,83282.0,83265.0,0.0003368]
[1743640807483,0.352009,83266.0,83265.0,6.7e-07]
[1743640807699,2.1446846,83266.0,83265.0,6.7e-07]
[1743640807860,2.17497851,83266.0,83265.0,0.00045968]
[1743640808065,1.9634846,83266.0,83265.0,0.00045968]
[1743640810251,2.11022861,83266.0,83265.0,6.8e-07]
[1743640811224,0.352011,83256.0,83255.0,8e-07]
[1743640811423,0.597252,83250.0,83249.0,6e-07]
[1743640811595,0.8902476,83250.0,83249.0,0.00013826]
[1743640812673,0.8652476,83250.0,83249.0,0.00013826]
[1743640812962,1.3048476,83250.0,83249.0,0.00013826]
[1743640813162,1.42159161,83250.0,83249.0,2.6e-07]
[1743640813974,0.592287,83238.0,83221.0,0.004]
[1743640814152,0.7090426,83238.0,83237.0,0.00038277]
[1743640816717,0.7209495,83238.0,83237.0,0.00038277]
[1743640818589,1.25229351,83238.0,83237.0,0.00038277]
[1743640818799,1.1355495,83238.0,83237.0,0.00038277]
[1743640828503,0.8713556,83238.0,83237.0,0.00038277]
[1743640828629,1.1236426,83238.0,83237.0,0.00038277]
[1743640830259,1.1236426,83238.0,83237.0,0.00789216]
[1743640831517,1.1236426,83238.0,83237.0,0.00038277]
[1743640833876,1.24038661,83238.0,83237.0,0.00413749]
[1743640834100,0.252303,83233.0,83232.0,4.9e-07]
[1743640834303,0.7090586,83233.0,83232.0,4.9e-07]
[1743640834665,0.7090586,83233.0,83218.0,0.0053175]
[1743640834666,0.592337,83222.0,83218.0,0.0053175]
[1743640834865,0.7090926,83222.0,83218.0,0.0053175]
[1743640835043,1.1236926,83222.0,83221.0,1e-06]
[1743640835967,1.1286926,83222.0,83221.0,1e-06]
[1743640836150,1.1536926,83222.0,83221.0,1e-06]
[1743640837134,1.1599554,83222.0,83221.0,1e-06]
[1743640837337,1.1549554,83222.0,83221.0,1e-06]
[1743640838869,0.592372,83210.0,83209.0,0.0003366]
[1743640839069,0.7091276,83210.0,83209.0,0.0003366]
[1743640840148,0.7091276,83210.0,83209.0,0.00079695]
[1743640842136,1.1237276,83210.0,83209.0,0.00079695]
[1743640844570,0.8713556,83210.0,83209.0,0.00079695]
[1743640845339,0.8833726,83210.0,83209.0,0.00079695]
[1743640847991,0.4146,83210.0,83209.0,0.01281395]
[1743640848902,0.4146,83210.0,83209.0,0.00079695]
[1743640852755,0.4146,83237.0,83232.0,0.012014]
[1743640852973,0.1167556,83236.0,83235.0,0.252297]
[1743640853151,0.1167556,83236.0,83234.0,0.0464]
[1743640853571,0.1287696,83236.0,83234.0,0.0464]
[1743640854051,0.3690516,83236.0,83234.0,0.0464]
[1743640854251,0.3690516,83236.0,83234.0,0.04653791]
[1743640854680,0.012014,83235.0,83234.0,0.04653791]
[1743640854987,0.1287696,83235.0,83234.0,0.04653791]
[1743640856760,0.1167556,83235.0,83234.0,0.04653791]
[1743640858185,0.1287696,83235.0,83234.0,0.04653791]
[1743640858385,0.13118005,83235.0,83234.0,0.00013791]
[1743640858791,0.13118005,83235.0,83221.0,5.6e-07]
[1743640858792,0.252328,83225.0,83221.0,5.6e-07]
[1743640859062,0.3690926,83222.0,83221.0,5.6e-07]
[1743640859197,0.5204526,83222.0,83221.0,5.6e-07]
[1743640859643,0.252372,83210.0,83195.0,0.0492]
[1743640859844,0.240396,83196.0,83195.0,0.047584]
[1743640859999,0.240396,83196.0,83195.0,0.04723605]
[1743640860195,0.240396,83196.0,83195.0,0.0476964]
[1743640860598,0.240391,83198.0,83195.0,0.0476964]
[1743640860954,0.012018,83204.0,83197.0,0.012019]
[1743640861181,0.252407,83199.0,83195.0,0.0476964]
[1743640861482,0.240396,83197.0,83195.0,0.00046035]
[1743640861723,0.13118505,83196.0,83195.0,0.00046035]
[1743640861976,0.1287746,83196.0,83195.0,0.00046035]
[1743640862217,0.13118505,83196.0,83195.0,0.00046035]
[1743640862454,0.1287746,83196.0,83195.0,0.00046035]
[1743640863399,0.47118505,83196.0,83195.0,0.00046035]
[1743640863620,0.4687746,83196.0,83195.0,0.00046035]
[1743640865518,0.8833746,83196.0,83195.0,0.00046035]
[1743640865717,0.8833746,83196.0,83195.0,0.00079735]
[1743640866511,0.8833746,83196.0,83195.0,3.5e-07]
[1743640866512,1.00011861,83196.0,83195.0,3.5e-07]
[1743640867340,0.8833746,83196.0,83195.0,3.5e-07]
[1743640871110,0.592427,83192.0,83191.0,3.5e-07]
[1743640871312,2.2055026,83192.0,83191.0,9.8e-07]
[1743640872347,0.592457,83182.0,83181.0,7.8e-07]
[1743640872554,0.8605726,83182.0,83181.0,7.8e-07]
[1743640873299,1.00731661,83182.0,83181.0,7.8e-07]
[1743640874263,0.597506,83166.0,83165.0,5.8e-07]
[1743640874466,0.8656216,83166.0,83165.0,0.00013863]
[1743640876541,0.87188582,83166.0,83165.0,6.3e-07]
[1743640876770,0.597518,83162.0,83161.0,6.3e-07]
[1743640876994,1.7962336,83162.0,83161.0,6.3e-07]
[1743640877202,1.7912336,83162.0,83161.0,6.3e-07]
[1743640877591,1.80311707,83162.0,83161.0,6.3e-07]
[1743640879602,1.46311707,83162.0,83161.0,6.3e-07]
[1743640880259,1.87771707,83162.0,83161.0,6.3e-07]
[1743640880464,1.8658336,83162.0,83161.0,6.3e-07]
[1743640881102,0.5313556,83162.0,83161.0,6.3e-07]
[1743640881230,0.7718496,83162.0,83161.0,6.3e-07]
[1743640881453,0.7838736,83162.0,83161.0,6.3e-07]
[1743640884294,0.4146,83179.0,83163.0,0.012024]
[1743640884508,0.352022,83175.0,83168.0,0.012023]
[1743640884698,0.580463,83173.0,83167.0,0.2525]
[1743640884909,0.012023,83170.0,83164.0,0.240486]
[1743640885117,0.012024,83162.0,83161.0,6.3e-07]
[1743640885278,0.1287796,83162.0,83161.0,6.3e-07]
[1743640885976,0.1167556,83162.0,83161.0,6.3e-07]
[1743640886111,0.240455,83176.0,83167.0,0.012023]
[1743640886112,0.592487,83173.0,83167.0,0.012023]
[1743640886305,0.1167556,83172.0,83167.0,0.012023]
[1743640886517,0.1167556,83172.0,83171.0,0.012023]
[1743640886518,0.4567556,83172.0,83171.0,0.012023]
[1743640886723,0.4567556,83172.0,83170.0,0.240471]
[1743640886922,0.012022,83177.0,83170.0,0.012023]
[1743640887106,0.1167556,83176.0,83171.0,0.0472]
[1743640887795,0.252459,83182.0,83178.0,0.012022]
[1743640887796,0.34,83182.0,83178.0,0.012022]
[1743640887981,0.34,83180.0,83175.0,0.012022]
[1743640888277,0.34,83180.0,83174.0,0.240457]
[1743640888278,0.012022,83179.0,83174.0,0.240457]
[1743640888485,0.592465,83180.0,83175.0,0.252476]
[1743640888633,0.592465,83180.0,83175.0,0.012022]
[1743640889084,0.592465,83180.0,83175.0,0.252476]
[1743640889285,0.1167556,83181.0,83176.0,0.252473]
[1743640889494,0.01204828,83188.0,83171.0,0.299685]
[1743640889495,0.240413,83190.0,83186.0,0.012021]
[1743640889707,0.5313556,83187.0,83185.0,0.240426]
[1743640889919,0.1167556,83186.0,83184.0,0.012021]
[1743640890557,0.1167556,83186.0,83182.0,0.240433]
[1743640890785,0.1167556,83186.0,83183.0,0.012021]
[1743640890993,0.1167556,83186.0,83182.0,0.240433]
[1743640891229,0.1167556,83186.0,83181.0,0.012021]
[1743640891445,0.000337,83182.0,83181.0,0.012021]
[1743640892713,0.000337,83182.0,83181.0,0.059921]
[1743640894114,0.00013751,83187.0,83186.0,0.252446]
[1743640894418,0.00013751,83187.0,83186.0,0.345546]
[1743640898029,0.00013751,83187.0,83186.0,0.256481]
[1743640898719,0.00013751,83187.0,83186.0,0.496906]
[1743640899929,0.00013751,83187.0,83186.0,0.496866]
[1743640900204,0.25258051,83187.0,83181.0,0.00375771]
[1743640900457,0.252468,83179.0,83175.0,0.01127027]
[1743640900704,0.252468,83179.0,83175.0,0.00375771]
[1743640900932,0.00241045,83178.0,83175.0,0.00375771]
[1743640901163,0.252468,83179.0,83175.0,0.00375771]
[1743640901615,0.00241045,83178.0,83175.0,0.00375771]
[1743640901891,0.00241045,83178.0,83174.0,0.252479]
[1743640902141,0.252468,83179.0,83174.0,0.252479]
[1743640902397,0.252468,83179.0,83162.0,0.240491]
[1743640902398,0.012023,83171.0,83162.0,0.252515]
[1743640902650,0.012023,83171.0,83161.0,0.00016913]
[1743640902651,0.012024,83163.0,83161.0,0.00016913]
[1743640902871,0.012023,83168.0,83161.0,0.00016913]
[1743640902872,0.4146,83171.0,83165.0,0.240485]
[1743640903119,0.4146,83171.0,83168.0,0.240476]
[1743640903325,0.4146,83171.0,83170.0,0.252494]
[1743640903694,0.4146,83171.0,83170.0,0.403814]
[1743640903882,0.4146,83171.0,83170.0,0.452314]
[1743640906525,0.012021,83184.0,83180.0,0.240441]
[1743640906767,0.240427,83186.0,83180.0,0.240441]
[1743640906982,0.252448,83186.0,83180.0,0.240441]
[1743640907181,0.252448,83186.0,83180.0,0.252463]
[1743640907866,0.252448,83186.0,83182.0,0.240436]
[1743640908407,0.252448,83186.0,83181.0,0.012021]
[1743640908607,0.01249551,83187.0,83180.0,0.252463]
[1743640908818,0.24043,83184.0,83179.0,0.012022]
[1743640909707,0.012021,83183.0,83178.0,0.240446]
[1743640910488,0.012021,83183.0,83170.0,0.0485]
[1743640910489,0.240456,83175.0,83170.0,0.19982]
[1743640910695,0.252478,83175.0,83170.0,0.452312]
[1743640910897,0.012022,83176.0,83171.0,0.252489]
[1743640911296,0.252467,83179.0,83173.0,0.240461]
[1743640911702,0.012021,83186.0,83181.0,0.012021]
[1743640911920,0.012021,83186.0,83179.0,0.012022]
[1743640911921,0.012021,83185.0,83179.0,0.012022]
[1743640912702,0.240432,83184.0,83179.0,0.252465]
[1743640913102,0.240432,83184.0,83180.0,0.252462]
[1743640913530,0.240432,83184.0,83180.0,0.012022]
[1743640913731,0.012022,83176.0,83155.0,0.285714]
[1743640913933,0.240463,83173.0,83171.0,0.15132]
[1743640914139,0.012023,83172.0,83171.0,0.15132]
[1743640915325,0.012023,83172.0,83167.0,0.00375771]
[1743640915326,0.2525,83168.0,83167.0,0.00375771]
[1743640915570,0.012024,83166.0,83162.0,0.15132]
[1743640915743,0.012024,83166.0,83161.0,0.28746613]
[1743640915744,0.2525,83168.0,83161.0,0.29949013]
[1743640915963,0.012023,83171.0,83161.0,0.29949013]
[1743640915964,0.252499,83169.0,83164.0,0.012024]
[1743640916160,0.240482,83166.0,83162.0,0.012024]
[1743640916485,0.252506,83166.0,83161.0,0.29948913]
[1743640916714,0.012023,83167.0,83162.0,0.252516]
[1743640916870,0.012023,83171.0,83165.0,0.240485]
[1743640916871,0.252492,83171.0,83165.0,0.240485]
[1743640917079,0.012021,83181.0,83174.0,0.012022]
[1743640917283,0.012022,83178.0,83171.0,0.012023]
[1743640917484,0.012023,83173.0,83165.0,0.240483]
[1743640917708,0.012024,83165.0,83161.0,0.00931235]
[1743640918044,0.240477,83168.0,83162.0,0.252515]
[1743640918491,0.252494,83170.0,83165.0,0.240485]
[1743640918691,0.252494,83170.0,83165.0,0.252509]
[1743640918894,0.012023,83171.0,83166.0,0.252504]
[1743640919098,0.252493,83171.0,83166.0,0.252504]
[1743640919299,0.012022,83177.0,83170.0,0.012023]
[1743640919478,0.240472,83170.0,83165.0,0.012024]
[1743640919674,0.012022,83174.0,83170.0,0.240469]
[1743640919883,0.252481,83175.0,83170.0,0.252492]
[1743640920278,0.012022,83177.0,83172.0,0.240465]
[1743640920481,0.24045,83178.0,83173.0,0.252483]
[1743640920674,0.252472,83178.0,83173.0,0.252483]
[1743640920888,0.252468,83179.0,83174.0,0.012022]
[1743640920889,0.012022,83179.0,83174.0,0.012022]
[1743640921108,0.240455,83176.0,83171.0,0.012023]
[1743640921487,0.240455,83176.0,83171.0,0.252489]
[1743640921830,0.012022,83177.0,83172.0,0.252486]
[1743640922059,0.252475,83177.0,83172.0,0.252486]
[1743640926578,0.252475,83177.0,83173.0,0.24046]
[1743640926741,0.012022,83179.0,83175.0,0.240454]
[1743640926944,0.012022,83179.0,83171.0,0.012023]
[1743640926945,0.2405625,83197.0,83185.0,0.240427]
[1743640927178,0.012019,83195.0,83185.0,0.252448]
[1743640927370,0.01202,83194.0,83185.0,0.252448]
[1743640927572,0.240398,83196.0,83185.0,0.252448]
[1743640928008,0.252417,83196.0,83185.0,0.252448]
[1743640928542,0.012019,83196.0,83185.0,0.252448]
[1743640928897,0.252417,83196.0,83185.0,0.252448]
[1743640930502,0.0001685,83197.0,83185.0,0.252448]
[1743640931719,0.0001685,83197.0,83185.0,0.7565036]
[1743640932813,0.0001685,83197.0,83185.0,0.639748]
[1743640933264,0.0001685,83197.0,83185.0,0.81743765]
[1743640933731,0.0001685,83197.0,83185.0,0.82119536]
[1743640934379,0.0001685,83197.0,83186.0,0.400721]
[1743640934588,0.0001685,83197.0,83186.0,0.5174766]
[1743640935270,0.0001685,83197.0,83186.0,0.52123431]
[1743640938009,0.0001685,83197.0,83186.0,0.5174766]
[1743640938408,5.1e-07,83187.0,83186.0,0.5174766]
[1743640938689,0.0001685,83197.0,83196.0,0.640115]
[1743640938861,0.0001685,83197.0,83196.0,0.9557706]
[1743640939720,0.0001685,83197.0,83196.0,0.9807706]
[1743640939995,0.4146,83231.0,83230.0,0.012014]
[1743640940230,0.00046035,83231.0,83228.0,0.012015]
[1743640940449,0.00046035,83231.0,83230.0,0.012014]
[1743640940679,0.00046035,83231.0,83230.0,0.01441672]
[1743640941301,0.00046035,83231.0,83230.0,0.012014]
[1743640943137,0.00046035,83231.0,83230.0,0.01441649]
[1743640943757,0.00046035,83231.0,83230.0,0.012014]
[1743640944328,0.00046035,83231.0,83230.0,0.01441647]
[1743640944520,0.00046035,83231.0,83230.0,0.17807207]
[1743640944747,3.5e-07,83231.0,83230.0,0.51807207]
[1743640944966,3.5e-07,83231.0,83230.0,1.0013696]
[1743640945177,0.0041686,83249.0,83248.0,0.252258]
[1743640945390,0.00430664,83249.0,83248.0,0.5661336]
[1743640947382,0.252285,83239.0,83229.0,0.0478]
[1743640947604,0.240255,83245.0,83234.0,0.012014]
[1743640947807,0.240251,83246.0,83241.0,0.252276]
[1743640948004,0.25226,83248.0,83242.0,0.012013]
[1743640948191,0.240251,83246.0,83240.0,0.240269]
[1743640948419,0.252263,83246.0,83240.0,0.240269]
[1743640949162,0.00430664,83249.0,83243.0,0.012013]
[1743640949368,0.24454964,83249.0,83243.0,0.012013]
[1743640949475,0.252263,83247.0,83241.0,0.012013]
[1743640951035,0.012012,83246.0,83241.0,0.012013]
[1743640951857,0.012012,83245.0,83240.0,0.012013]
[1743640952634,0.01191194,83245.0,83241.0,0.240266]
[1743640952870,0.252285,83239.0,83233.0,0.163134]
[1743640953086,0.012013,83237.0,83234.0,0.15108]
[1743640953248,0.252285,83239.0,83234.0,0.15108]
[1743640953453,0.252285,83239.0,83234.0,0.240283]
[1743640954296,0.2524325,83246.0,83239.0,0.252282]
[1743640954595,0.2524325,83246.0,83237.0,0.012013]
[1743640954596,0.252275,83243.0,83237.0,0.012013]
[1743640954803,0.012013,83242.0,83237.0,0.012013]
[1743640955009,0.012013,83242.0,83236.0,0.252293]
[1743640955216,0.24027,83240.0,83236.0,0.012014]
[1743640955425,0.252281,83241.0,83236.0,0.252294]
[1743640955624,0.06083062,83310.0,83232.0,0.39137]
[1743640955625,0.0001685,83246.0,83244.0,0.240254]
[1743640956240,0.0001685,83246.0,83245.0,0.012012]
[1743640957263,0.0001685,83246.0,83244.0,0.240257]
[1743640957666,0.0001685,83246.0,83245.0,0.012012]
[1743640958705,0.0001685,83246.0,83245.0,0.01441423]
[1743640959488,0.0001685,83246.0,83245.0,0.13116983]
[1743640959901,0.0001685,83246.0,83245.0,0.18016983]
[1743640960678,0.0001685,83246.0,83245.0,0.52016983]
[1743640960888,0.0001685,83246.0,83245.0,0.5177676]
[1743640961095,1.4e-07,83249.0,83248.0,0.641158]
[1743640961315,1.4e-07,83249.0,83248.0,1.3485536]
[1743640961615,0.000337,83266.0,83262.0,0.252215]
[1743640961855,0.000337,83266.0,83262.0,0.4175706]
[1743640963256,0.000337,83266.0,83260.0,0.240208]
[1743640963257,0.000337,83266.0,83259.0,0.252224]
[1743640963466,0.000337,83266.0,83262.0,0.252215]
[1743640963819,0.000337,83266.0,83262.0,0.26138834]
[1743640964228,0.000337,83266.0,83262.0,0.00917334]
[1743640964476,0.240205,83262.0,83256.0,0.2647647]
[1743640964636,0.240532,83266.0,83259.0,0.240211]
[1743640964978,0.000337,83266.0,83261.0,0.01201]
[1743640965939,0.00075659,83263.0,83262.0,0.01201]
[1743640966187,0.00075659,83263.0,83262.0,0.252215]
[1743640966407,0.00075659,83263.0,83261.0,0.01201]
[1743640966642,0.00075659,83263.0,83260.0,0.252218]
[1743640966861,0.00075659,83263.0,83261.0,0.01201]
[1743640967048,0.00075659,83263.0,83262.0,0.01201]
[1743640967577,0.00075659,83263.0,83261.0,0.01201]
[1743640967955,0.00075659,83263.0,83262.0,0.240205]
[1743640968155,0.00075659,83263.0,83262.0,0.252215]
[1743640969154,0.00075659,83263.0,83261.0,0.01201]
[1743640969449,0.00075659,83263.0,83262.0,0.01201]
[1743640971224,0.240216,83259.0,83257.0,0.00375287]
[1743640971485,0.01201,83258.0,83257.0,0.00375287]
[1743640971665,0.240216,83259.0,83257.0,0.00375287]
[1743640971882,0.240216,83259.0,83258.0,0.00375287]
[1743640972299,0.01201,83260.0,83258.0,0.00375287]
[1743640972510,0.252218,83261.0,83258.0,0.00375287]
[1743640973272,0.01201,83262.0,83258.0,0.00375287]
[1743640973674,0.01201,83262.0,83257.0,0.012011]
[1743640973804,0.01201,83262.0,83253.0,0.00375287]
[1743640973805,0.240228,83254.0,83253.0,0.00375287]
[1743640974009,0.240216,83259.0,83253.0,0.00375287]
[1743640974392,0.252229,83258.0,83253.0,0.25599287]
[1743640974647,0.252229,83258.0,83253.0,0.01576387]
[1743640974825,0.01201,83261.0,83256.0,0.012011]
[1743640975037,0.012346,83270.0,83261.0,0.252216]
[1743640975433,0.240531,83266.0,83261.0,0.252216]
[1743640975638,0.240227,83255.0,83253.0,0.00375287]
[1743640975840,0.01201,83258.0,83254.0,0.00375287]
[1743640976019,0.11751219,83263.0,83259.0,0.01201]
[1743640976020,0.00075659,83263.0,83259.0,0.01201]
[1743640976215,0.00075659,83263.0,83260.0,0.252221]
[1743640976461,0.00075659,83263.0,83260.0,0.240211]
[1743640976619,0.00075659,83263.0,83259.0,0.01201]
[1743640977630,0.24022,83257.0,83254.0,0.00375287]
[1743640977847,0.012011,83254.0,83253.0,0.00375287]
[1743640979268,0.252242,83253.0,83250.0,0.10566502]
[1743640979943,0.240236,83252.0,83250.0,0.10566502]
[1743640980685,0.54577705,83251.0,83250.0,0.10566502]
[1743640980894,0.8833666,83251.0,83250.0,0.10566502]
[1743640981103,0.9798666,83251.0,83250.0,0.10566502]
[1743640981543,0.597252,83250.0,83249.0,8.2e-07]
[1743640981726,0.592266,83245.0,83244.0,0.00375287]
[1743640981933,0.592266,83245.0,83241.0,0.0003368]
[1743640981934,0.592276,83242.0,83241.0,0.0003368]
[1743640982140,0.3690316,83242.0,83241.0,0.0003368]
[1743640983433,1.1728316,83242.0,83241.0,0.0003368]
[1743640986032,0.252382,83207.0,83206.0,0.1]
[1743640986239,0.252382,83207.0,83206.0,0.10046035]
[1743640986240,0.3691376,83207.0,83206.0,0.10046035]
[1743640986634,0.79556141,83207.0,83206.0,0.10046035]
[1743640988622,0.4146,83207.0,83206.0,0.35284535]
[1743640990908,0.4146,83207.0,83206.0,0.35318215]
[1743640991691,0.240336,83217.0,83211.0,0.240352]
[1743640991894,0.240336,83217.0,83211.0,0.252369]
[1743640992304,0.012016,83220.0,83214.0,0.012017]
[1743640992459,0.252345,83220.0,83214.0,0.252358]
[1743640992666,0.252348,83219.0,83214.0,0.012017]
[1743640992906,0.012017,83210.0,83206.0,0.10079715]
[1743640993104,0.012016,83216.0,83207.0,0.252379]
[1743640993303,0.012017,83212.0,83207.0,0.252379]
[1743640993484,0.240344,83214.0,83208.0,0.012018]
[1743640993689,0.012016,83219.0,83209.0,0.012017]
[1743640993889,0.012016,83218.0,83212.0,0.012017]
[1743640994101,0.252349,83218.0,83212.0,0.012017]
[1743640994500,0.252355,83216.0,83208.0,0.012018]
[1743640994715,0.012017,83214.0,83209.0,0.252375]
[1743640994910,0.012017,83215.0,83210.0,0.252369]